bitfinex-derivatives/quotes_SOLF0:USTF0_20250914
["timestamp","ask_amount","ask_price","bid_price","bid_amount"]
[1757881178831,3.96,243.41,243.29,7.11]
[1757881179030,5.05088048,243.41,243.29,7.11]
[1757881179222,1.09088048,243.41,243.29,7.11]
[1757881179425,3.96,243.4,243.29,7.11]
[1757881180733,3.96,243.37,243.29,7.11]
[1757881184834,1.09088048,243.4,243.29,7.11]
[1757881185034,5.05088048,243.4,243.29,7.11]
[1757881185735,3.96,243.4,243.29,7.11]
[1757881185936,5.05088048,243.4,243.29,7.11]
[1757881186233,5.05088048,243.4,243.3,6.78]
[1757881186831,3.96,243.4,243.3,6.78]
[1757881189838,1.09088048,243.44,243.32,6.78]
[1757881190037,3.96,243.43,243.32,6.78]
[1757881190236,1.09088048,243.41,243.32,6.78]
[1757881191539,3.96,243.43,243.32,6.78]
[1757881191540,5.05088048,243.43,243.32,6.78]
[1757881194136,3.96,243.47,243.36,6.71]
[1757881194342,5.05088048,243.47,243.36,6.71]
[1757881195938,3.96,243.47,243.36,6.71]
[1757881196133,5.05088048,243.47,243.36,6.71]
[1757881198033,1.09088048,243.47,243.36,6.71]
[1757881199344,5.05088048,243.47,243.36,6.71]
[1757881199539,1.09088048,243.44,243.36,6.71]
[1757881199739,3.96,243.43,243.36,6.71]
[1757881202849,5.05088048,243.43,243.36,6.71]
[1757881203848,3.96,243.43,243.36,6.71]
[1757881205240,3.96,243.43,243.31,100.74]
[1757881205241,3.96,243.41,243.3,6.71]
[1757881205445,5.66103866,243.41,243.3,6.71]
[1757881206546,1.70103866,243.41,243.3,6.71]
[1757881206741,3.96,243.39,243.3,6.71]
[1757881209150,1.70103866,243.41,243.17,276.0]
[1757881209352,3.96,243.28,243.2,6.71]
[1757881211050,3.96,243.27,243.12,24.99]
[1757881211250,3.96,243.27,243.13,6.71]
[1757881211656,1.70103866,243.28,243.13,6.71]
[1757881212255,3.96,243.27,243.13,6.71]
[1757881212553,1.70103866,243.28,243.13,6.71]
[1757881212757,3.96,243.27,243.13,6.71]
[1757881213051,1.70103866,243.3,243.13,6.71]
[1757881213257,3.96,243.27,243.13,6.71]
[1757881214155,3.96,243.27,243.14,3.6998]
[1757881214347,3.96,243.38,243.17,6.92]
[1757881214547,1.70103866,243.35,243.17,6.92]
[1757881214752,3.96,243.34,243.17,6.92]
[1757881214952,1.70103866,243.35,243.17,6.92]
[1757881215148,3.96,243.34,243.17,6.92]
[1757881215753,1.70103866,243.35,243.17,6.92]
[1757881215953,3.96,243.34,243.17,6.92]
[1757881216154,1.70103866,243.35,243.17,6.92]
[1757881216354,3.96,243.34,243.17,6.92]
[1757881216550,1.70103866,243.35,243.17,6.92]
[1757881216756,3.96,243.34,243.18,3.6992]
[1757881217059,1.70103866,243.35,243.19,6.92]
[1757881217357,3.96,243.34,243.19,6.92]
[1757881218558,1.70103866,243.35,243.19,6.92]
[1757881218763,3.96,243.34,243.19,6.92]
[1757881219363,1.70103866,243.35,243.19,6.92]
[1757881219562,3.96,243.34,243.19,6.92]
[1757881219961,3.96,243.34,243.21,6.92]
[1757881221264,3.96,243.34,243.23,6.92]
[1757881222867,3.96,243.41,243.24,1.70103866]
[1757881223066,3.96,243.39,243.25,6.92]
[1757881223565,3.96,243.39,243.23,1.70103866]
[1757881223566,3.96,243.39,243.26,10.3]
[1757881223758,3.96,243.39,243.27,6.92]
[1757881225271,5.66103866,243.43,243.29,6.92]
[1757881225663,3.96,243.42,243.29,6.92]
[1757881225859,3.96,243.38,243.29,6.92]
[1757881226070,1.70103866,243.39,243.29,6.92]
[1757881226269,3.96,243.38,243.29,6.92]
[1757881226567,1.70103866,243.39,243.22,6.92]
[1757881226967,3.96,243.38,243.22,6.92]
[1757881227169,2.86317006,243.37,243.22,6.92]
[1757881227369,3.96,243.34,243.22,6.92]
[1757881232074,1.70103866,243.35,243.22,6.92]
[1757881232474,3.96,243.38,243.23,3.6984]
[1757881232672,3.96,243.38,243.24,7.02]
[1757881235678,1.70103866,243.39,243.24,7.02]
[1757881236176,3.96,243.38,243.24,7.02]
[1757881236570,1.70103866,243.39,243.24,7.02]
[1757881237176,3.96,243.38,243.24,7.02]
[1757881237776,1.70103866,243.39,243.24,7.02]
[1757881237979,3.96,243.38,243.24,7.02]
[1757881238176,2.86784523,243.37,243.24,7.02]
[1757881238379,3.96,243.36,243.24,7.02]
[1757881238574,3.96,243.34,243.17,1.70103866]
[1757881238775,2.86806095,243.33,243.18,7.02]
[1757881238970,3.96,243.34,243.18,7.02]
[1757881239781,1.70103866,243.35,243.18,7.02]
[1757881240078,3.96,243.34,243.18,7.02]
[1757881240274,1.70103866,243.35,243.18,7.02]
[1757881240468,3.96,243.34,243.18,7.02]
[1757881240878,1.70103866,243.35,243.18,7.02]
[1757881241175,3.96,243.34,243.18,7.02]
[1757881241479,3.96,243.32,243.18,7.02]
[1757881242276,12.42,243.43,243.18,7.02]
[1757881242277,1.70103866,243.31,243.18,7.02]
[1757881243179,3.96,243.3,243.18,7.02]
[1757881244381,1.70103866,243.29,243.18,7.02]
[1757881244577,3.96,243.28,243.18,7.02]
[1757881247580,2.87249861,243.27,243.18,7.02]
[1757881248784,1.70103866,243.25,243.18,7.02]
[1757881248979,4.57353727,243.25,243.18,7.02]
[1757881251986,3.96,243.24,243.18,7.02]
[1757881252182,3.96,243.24,243.12,6.55]
[1757881252384,2.87274676,243.23,243.12,6.55]
[1757881252583,1.70103866,243.21,243.12,6.55]
[1757881253379,3.96,243.2,243.12,6.55]
[1757881265892,5.05076931,243.2,243.12,6.55]
[1757881266700,6.80550617,243.36,243.04,27.18]
[1757881266701,3.96,243.26,243.15,6.95]
[1757881269796,1.09076931,243.24,243.15,6.95]
[1757881270003,3.96,243.23,243.15,6.95]
[1757881270900,3.96,243.2,243.09,6.95]
[1757881272301,3.96,243.17,243.09,6.95]
[1757881276597,5.05076931,243.17,243.09,6.95]
[1757881277393,1.09076931,243.14,243.09,6.95]
[1757881277601,3.96,243.13,243.03,6.46]
[1757881277998,1.09076931,243.11,243.03,6.46]
[1757881278900,3.96,243.07,243.03,6.46]
[1757881279103,3.96,243.04,242.96,6.46]
[1757881281407,1.09076931,243.02,242.96,6.46]
[1757881283603,5.05076931,243.02,242.89,6.46]
[1757881284205,1.09076931,242.99,242.89,6.46]
[1757881287410,1.09076931,243.01,242.89,6.46]
[1757881289106,3.96,243.0,242.89,6.46]
[1757881292614,5.05076931,243.03,242.89,7.55076931]
[1757881293413,5.05076931,243.03,242.9,1.09076931]
[1757881293616,5.05076931,243.03,242.91,6.46]
[1757881295414,3.96,243.03,242.94,6.46]
[1757881295618,1.09076931,243.02,242.94,6.46]
[1757881295805,3.96,243.01,242.94,6.46]
[1757881296007,3.96,242.98,242.94,6.46]
[1757881296613,1.09076931,242.99,242.94,6.46]
[1757881297009,3.96,242.98,242.85,6.46]
[1757881297220,1.09076931,242.96,242.85,6.46]
[1757881298316,3.96,242.95,242.85,6.46]
[1757881298511,3.96,242.92,242.85,6.46]
[1757881300416,3.96,242.92,242.8,6.46]
[1757881300616,1.09076931,242.9,242.8,6.46]
[1757881308333,1.09076931,242.93,242.82,7.03]
[1757881309826,1.09076931,242.93,242.82,8.12076931]
[1757881310731,5.07076931,242.93,242.82,8.12076931]
[1757881311030,5.07076931,242.93,242.82,7.03]
[1757881312130,1.09076931,242.9,242.82,7.03]
[1757881312331,3.98,242.89,242.82,7.03]
[1757881317941,1.09076931,242.92,242.82,7.03]
[1757881318241,3.9681792,242.92,242.82,7.03]
[1757881320240,2.87740989,242.91,242.82,7.03]
[1757881320735,3.98,242.93,242.82,7.03]
[1757881320736,1.09076931,242.92,242.82,7.03]
[1757881320941,3.97348536,242.92,242.82,7.03]
[1757881321140,2.88271605,242.91,242.82,7.03]
[1757881321342,2.88271605,242.9,242.82,7.03]
[1757881321542,1.09076931,242.92,242.82,7.03]
[1757881321840,2.88564761,242.91,242.82,7.03]
[1757881322042,2.88564761,242.9,242.82,7.03]
[1757881322342,2.88564761,242.89,242.82,7.03]
[1757881322534,2.88564761,242.88,242.82,7.03]
[1757881322737,2.88564761,242.87,242.82,7.03]
[1757881322934,2.88760746,242.86,242.82,7.03]
[1757881323134,3.98,242.86,242.77,7.01]
[1757881324446,1.09076931,242.89,242.77,7.01]
[1757881324749,2.89136106,242.88,242.77,7.01]
[1757881325047,2.89136106,242.87,242.8,7.01]
[1757881325244,3.98,242.9,242.8,7.01]
[1757881325444,2.8920675,242.89,242.8,7.01]
[1757881325646,2.8920675,242.88,242.8,7.01]
[1757881325847,2.8920675,242.87,242.8,7.01]
[1757881326045,3.98,242.9,242.8,7.01]
[1757881326345,2.89346986,242.89,242.8,7.01]
[1757881326548,2.89346986,242.88,242.8,7.01]
[1757881326744,2.89346986,242.87,242.8,7.01]
[1757881327048,3.98,242.9,242.8,7.01]
[1757881327245,2.89387046,242.89,242.8,7.01]
[1757881327549,2.89387046,242.88,242.8,7.01]
[1757881327848,3.98,242.9,242.8,7.01]
[1757881328149,2.89405102,242.89,242.8,7.01]
[1757881328345,3.98,242.99,242.82,7.01]
[1757881328544,3.98,242.97,242.82,7.01]
[1757881328742,6.87475377,242.96,242.82,7.01]
[1757881328941,2.89475377,242.95,242.82,7.01]
[1757881329148,2.89475377,242.94,242.82,7.01]
[1757881329447,2.89475377,242.93,242.82,7.01]
[1757881329649,2.89475377,242.92,242.82,7.01]
[1757881329949,3.98,242.96,242.82,7.01]
[1757881330150,2.89625529,242.95,242.82,7.01]
[1757881330343,3.98,242.93,242.82,7.01]
[1757881330544,2.89625529,242.92,242.82,7.01]
[1757881330844,3.98,242.9,242.82,7.01]
[1757881331246,2.89690042,242.89,242.82,7.01]
[1757881331446,3.98,242.9,242.82,7.01]
[1757881331645,2.89699524,242.89,242.82,7.01]
[1757881331938,2.89699524,242.88,242.82,7.01]
[1757881332144,3.98,242.9,242.82,7.01]
[1757881332339,2.89744101,242.89,242.82,7.01]
[1757881332538,2.89744101,242.88,242.82,7.01]
[1757881332744,3.98,242.9,242.82,7.01]
[1757881332946,2.89735124,242.89,242.82,7.01]
[1757881333246,2.89735124,242.88,242.82,7.01]
[1757881333444,3.98,242.9,242.82,7.01]
[1757881333644,2.89796978,242.89,242.82,7.01]
[1757881333844,2.89796978,242.88,242.82,7.01]
[1757881334047,3.98,242.9,242.82,7.01]
[1757881334247,2.89833948,242.89,242.82,7.01]
[1757881334447,2.89833948,242.88,242.82,7.01]
[1757881334651,2.89833948,242.87,242.82,7.01]
[1757881334851,3.98,242.86,242.82,7.01]
[1757881337047,1.70833665,242.92,242.82,7.01]
[1757881337253,2.89779916,242.91,242.82,7.01]
[1757881337448,6.87779916,242.9,242.82,7.01]
[1757881337648,28.77779916,242.89,242.73,6.75]
[1757881337844,2.89779916,242.88,242.73,6.75]
[1757881338152,3.98,242.86,242.73,6.75]
[1757881338353,2.89779916,242.85,242.73,6.75]
[1757881338552,2.89779916,242.84,242.73,6.75]
[1757881338753,2.89779916,242.83,242.73,6.75]
[1757881338947,2.89779916,242.82,242.73,6.75]
[1757881339150,2.89779916,242.81,242.73,6.75]
[1757881339453,3.98,242.83,242.73,6.75]
[1757881339646,2.89739501,242.82,242.73,6.75]
[1757881339846,2.89739501,242.81,242.73,6.75]
[1757881340047,3.98,242.83,242.73,6.75]
[1757881340246,2.89803145,242.82,242.73,6.75]
[1757881340449,2.89803145,242.81,242.73,6.75]
[1757881340648,3.98,242.83,242.73,6.75]
[1757881340851,2.89836497,242.82,242.73,6.75]
[1757881341051,3.98,242.83,242.73,6.75]
[1757881341253,2.89959807,242.82,242.73,6.75]
[1757881341454,2.89959807,242.81,242.73,6.75]
[1757881341644,3.98,242.83,242.73,6.75]
[1757881341844,2.89963629,242.82,242.73,6.75]
[1757881342046,3.98,242.92,242.74,6.75]
[1757881342250,2.90060341,242.91,242.74,6.75]
[1757881342546,2.90060341,242.9,242.74,6.75]
[1757881342755,2.90060341,242.89,242.74,6.75]
[1757881342949,2.90060341,242.88,242.78,6.75]
[1757881343149,2.90060341,242.87,242.78,6.75]
[1757881343351,2.90060341,242.86,242.78,6.75]
[1757881343544,3.98,242.92,242.78,6.75]
[1757881343747,2.90096351,242.91,242.78,6.75]
[1757881343953,2.90096351,242.9,242.78,6.75]
[1757881344156,2.90096351,242.89,242.78,6.75]
[1757881344454,2.90096351,242.88,242.78,6.75]
[1757881344754,2.90096351,242.87,242.78,6.75]
[1757881344953,2.90096351,242.86,242.78,6.75]
[1757881345254,2.90111533,242.85,242.78,6.75]
[1757881345557,3.98,242.92,242.78,6.75]
[1757881345855,2.90111356,242.91,242.78,6.75]
[1757881346154,2.90111356,242.9,242.78,6.75]
[1757881346354,2.90111356,242.89,242.78,6.75]
[1757881346644,2.90111356,242.88,242.78,6.75]
[1757881346853,2.90111356,242.87,242.78,6.75]
[1757881347049,2.90111356,242.86,242.78,6.75]
[1757881347348,2.90111356,242.85,242.78,6.75]
[1757881347653,3.98,242.92,242.78,6.75]
[1757881347853,2.90118196,242.91,242.78,6.75]
[1757881348049,2.90118196,242.9,242.78,6.75]
[1757881348252,2.90118196,242.89,242.78,6.75]
[1757881348556,2.90118196,242.88,242.78,6.75]
[1757881348755,2.90118196,242.87,242.78,6.75]
[1757881348955,2.90118196,242.86,242.78,6.75]
[1757881349145,3.98,242.92,242.78,6.75]
[1757881349350,2.90123015,242.91,242.78,6.75]
[1757881349549,2.90123015,242.9,242.78,6.75]
[1757881349847,2.90123015,242.89,242.78,6.75]
[1757881350051,2.90123015,242.88,242.78,6.75]
[1757881350253,2.90123015,242.87,242.78,6.75]
[1757881350449,3.98,242.92,242.78,6.75]
[1757881350654,2.90139817,242.91,242.78,6.75]
[1757881350953,2.90139817,242.9,242.78,6.75]
[1757881351151,2.90139817,242.89,242.78,6.75]
[1757881351350,2.90139817,242.88,242.78,6.75]
[1757881351650,2.90139817,242.87,242.78,6.75]
[1757881351850,3.98,242.92,242.78,6.75]
[1757881352050,2.90154047,242.91,242.78,6.75]
[1757881352249,2.90154047,242.9,242.78,6.75]
[1757881352550,2.90154047,242.89,242.78,6.75]
[1757881352750,2.90154047,242.88,242.78,6.75]
[1757881352951,2.90154047,242.87,242.78,6.75]
[1757881353155,3.98,242.92,242.78,6.75]
[1757881353356,2.90172805,242.91,242.78,6.75]
[1757881353556,6.88172805,242.9,242.78,6.75]
[1757881353758,2.90172805,242.89,242.78,6.75]
[1757881354057,2.90172805,242.88,242.78,6.75]
[1757881354358,2.90172805,242.87,242.78,6.75]
[1757881354560,2.90172805,242.86,242.78,6.75]
[1757881354754,3.98,242.9,242.78,6.75]
[1757881355051,2.90201949,242.89,242.78,6.75]
[1757881355256,2.90201949,242.88,242.78,6.75]
[1757881355456,2.90201949,242.87,242.78,6.75]
[1757881355650,2.90201949,242.86,242.78,6.75]
[1757881355856,3.98,242.88,242.78,6.75]
[1757881356051,2.90238027,242.87,242.78,6.75]
[1757881356256,2.90238027,242.86,242.78,6.75]
[1757881356457,3.98,242.88,242.78,6.75]
[1757881356656,2.90258486,242.87,242.78,6.75]
[1757881356857,2.90258486,242.86,242.78,6.75]
[1757881357058,3.98,242.88,242.78,6.75]
[1757881357256,2.90269927,242.87,242.78,6.75]
[1757881357558,2.90269927,242.86,242.78,6.75]
[1757881357857,2.90269927,242.85,242.78,6.75]
[1757881358058,3.98,242.88,242.78,6.75]
[1757881358258,1.70833665,242.9,242.78,6.75]
[1757881358259,3.98,242.86,242.78,6.75]
[1757881358452,2.90263088,242.85,242.78,6.75]
[1757881358649,2.90263088,242.84,242.78,6.75]
[1757881358853,3.98,242.82,242.78,6.75]
[1757881359054,1.70833665,242.86,242.78,6.75]
[1757881359256,6.88217486,242.85,242.78,6.75]
[1757881359450,2.90217486,242.84,242.78,6.75]
[1757881359657,3.98,242.82,242.78,6.75]
[1757881359960,2.90217486,242.81,242.78,6.75]
[1757881360158,3.98,242.82,242.78,6.75]
[1757881360659,5.68833665,242.86,242.7,6.75]
[1757881360859,2.90163107,242.85,242.7,6.75]
[1757881361060,2.90163107,242.84,242.7,6.75]
[1757881361262,2.90163107,242.83,242.7,6.75]
[1757881361560,5.68833665,242.86,242.7,6.75]
[1757881361762,2.90142359,242.85,242.7,6.75]
[1757881361960,2.90142359,242.84,242.7,6.75]
[1757881362160,2.90142359,242.83,242.71,3.7062]
[1757881362357,5.68833665,242.86,242.71,3.7062]
[1757881362557,2.90133916,242.85,242.72,6.96]
[1757881362758,2.90133916,242.84,242.72,6.96]
[1757881362958,2.90133916,242.83,242.72,6.96]
[1757881363157,5.68833665,242.86,242.72,6.96]
[1757881363461,2.90125264,242.85,242.72,6.96]
[1757881363660,2.90125264,242.84,242.72,6.96]
[1757881363961,2.90125264,242.83,242.72,6.96]
[1757881364160,5.68833665,242.86,242.72,6.96]
[1757881364361,2.90120949,242.85,242.72,6.96]
[1757881364661,2.90120949,242.84,242.72,6.96]
[1757881364855,2.90120949,242.83,242.72,6.96]
[1757881365054,5.68833665,242.86,242.72,6.96]
[1757881365254,2.90135234,242.85,242.72,6.96]
[1757881365462,2.90135234,242.84,242.72,6.96]
[1757881365756,2.90135234,242.83,242.72,6.96]
[1757881365958,5.68833665,242.86,242.72,6.96]
[1757881366161,2.90054618,242.85,242.72,6.96]
[1757881366356,2.90054618,242.84,242.72,6.96]
[1757881366561,2.90054618,242.83,242.72,6.96]
[1757881366758,5.68833665,242.86,242.72,6.96]
[1757881366961,2.90009436,242.85,242.72,6.96]
[1757881367258,6.88009436,242.84,242.72,6.96]
[1757881367457,2.90009436,242.83,242.72,6.96]
[1757881367658,3.98,242.84,242.72,6.96]
[1757881367859,2.90017967,242.83,242.72,6.96]
[1757881368058,3.98,242.84,242.72,6.96]
[1757881368260,2.90011258,242.83,242.72,6.96]
[1757881368560,3.98,242.84,242.72,6.96]
[1757881368760,2.90011258,242.83,242.72,6.96]
[1757881368963,3.98,242.84,242.72,6.96]
[1757881369167,2.8995268,242.83,242.72,6.96]
[1757881369462,3.98,242.84,242.72,6.96]
[1757881369663,2.89946367,242.83,242.72,6.96]
[1757881369864,3.98,242.84,242.72,6.96]
[1757881370065,3.98,242.82,242.72,6.96]
[1757881371560,2.89884013,242.81,242.72,6.96]
[1757881371862,3.98,242.82,242.72,6.96]
[1757881372162,2.89935616,242.81,242.72,6.96]
[1757881372362,3.98,242.82,242.72,6.96]
[1757881372563,2.89924767,242.81,242.72,6.96]
[1757881372756,1.70833665,242.82,242.72,6.96]
[1757881372961,3.98,242.8,242.72,6.96]
[1757881373260,2.89904026,242.79,242.72,6.96]
[1757881373456,3.98,242.8,242.72,6.96]
[1757881373652,2.89864411,242.79,242.72,6.96]
[1757881373963,3.98,242.8,242.72,6.96]
[1757881374164,2.89864411,242.79,242.72,6.96]
[1757881374361,3.98,242.8,242.72,6.96]
[1757881374662,2.89868932,242.79,242.72,6.96]
[1757881374957,3.98,242.8,242.72,6.96]
[1757881375159,3.99,242.78,242.72,6.96]
[1757881375456,3.99,242.76,242.66,7.06]
[1757881375663,1.70833665,242.78,242.66,7.06]
[1757881375664,3.99,242.74,242.66,7.06]
[1757881377459,2.89637942,242.73,242.59,7.06]
[1757881377657,6.88637942,242.72,242.59,7.06]
[1757881377865,3.99,242.75,242.59,7.06]
[1757881378064,3.99,242.73,242.59,7.06]
[1757881378365,2.89630409,242.74,242.59,7.06]
[1757881378366,2.89630409,242.72,242.59,7.06]
[1757881378567,3.99,242.7,242.59,7.06]
[1757881378766,3.99,242.68,242.59,7.06]
[1757881378961,1.70833665,242.74,242.55,7.06]
[1757881378962,3.99,242.66,242.55,7.06]
[1757881379166,3.99,242.64,242.55,7.06]
[1757881380663,1.70833665,242.66,242.55,7.06]
[1757881380858,4.59790394,242.66,242.47,1.70833665]
[1757881381062,3.99,242.64,242.48,7.06]
[1757881381262,1.70833665,242.66,242.48,7.06]
[1757881381557,26.09,242.65,242.48,7.06]
[1757881381759,30.32,242.65,242.48,8.76833665]
[1757881381959,3.99,242.65,242.49,3.7096]
[1757881382164,3.99,242.65,242.5,7.06]
[1757881383265,12.34,242.82,242.56,1.70833665]
[1757881383471,3.99,242.7,242.57,7.06]
[1757881385766,3.99,242.7,242.61,7.06]
[1757881387467,5.08502135,242.7,242.61,7.06]
[1757881388670,3.99,242.7,242.61,7.06]
[1757881389365,5.08502135,242.74,242.61,7.06]
[1757881389766,1.09502135,242.74,242.61,7.06]
[1757881390173,3.99,242.73,242.61,7.06]
[1757881390375,1.09502135,242.76,242.64,7.06]
[1757881390673,122.35442592,242.77,242.67,7.06]
[1757881391272,1.09502135,242.75,242.67,7.06]
[1757881396680,1.09502135,242.82,242.67,7.06]
[1757881396876,2.88559434,242.84,242.7,6.82]
[1757881397178,1.09502135,242.82,242.7,6.82]
[1757881399291,1.09502135,242.82,242.71,6.82]
[1757881401582,1.09502135,242.79,242.71,6.82]
[1757881402178,1.09502135,242.78,242.71,6.82]
[1757881404586,3.99,242.82,242.71,6.82]
[1757881404789,1.09502135,242.78,242.71,6.82]
[1757881411191,5.08502135,242.82,242.71,6.82]
[1757881411698,1.09502135,242.79,242.71,6.82]
[1757881414905,3.99,242.91,242.77,6.82]
[1757881415204,3.99,242.91,242.84,6.82]
[1757881415803,1.09502135,242.9,242.84,6.82]
[1757881419408,1.09502135,242.94,242.84,6.82]
[1757881420308,3.99,242.93,242.84,6.82]
[1757881420508,1.09502135,242.91,242.84,6.82]
[1757881420810,3.99,242.9,242.84,6.82]
[1757881422300,1.09502135,242.85,242.73,6.9]
[1757881422504,1.09502135,242.85,242.74,6.9]
[1757881432716,3.98,242.84,242.74,6.9]
[1757881433117,1.09502135,242.82,242.74,6.9]
[1757881433715,5.07502135,242.84,242.74,6.9]
[1757881435419,3.98,242.88,242.76,6.76]
[1757881435615,2.90422126,242.87,242.76,6.76]
[1757881441214,2.90422126,242.86,242.76,6.76]
[1757881441420,3.98,242.88,242.76,6.76]
[1757881441621,2.9262745,242.87,242.76,6.76]
[1757881441823,2.9262745,242.86,242.76,6.76]
[1757881442114,3.98,242.88,242.76,6.76]
[1757881442320,1.09502135,242.89,242.76,6.76]
[1757881442321,2.92632035,242.87,242.76,6.76]
[1757881442522,1.09502135,242.89,242.76,6.76]
[1757881442821,2.92515667,242.88,242.76,6.76]
[1757881443324,2.92515667,242.88,242.78,6.76]
[1757881445927,3.98,242.91,242.78,6.76]
[1757881446225,2.9260191,242.9,242.78,6.76]
[1757881446425,2.9260191,242.89,242.78,6.76]
[1757881446724,2.9260191,242.88,242.78,6.76]
[1757881447026,3.98,242.91,242.78,6.76]
[1757881447325,2.92590206,242.9,242.78,6.76]
[1757881447520,2.92590206,242.89,242.78,6.76]
[1757881447724,2.92590206,242.88,242.78,6.76]
[1757881447922,3.98,242.91,242.78,6.76]
[1757881448123,2.92586056,242.9,242.78,6.76]
[1757881448325,2.92586056,242.89,242.78,6.76]
[1757881448625,2.92586056,242.88,242.78,6.76]
[1757881448827,3.98,242.91,242.78,6.76]
[1757881449025,2.9260572,242.9,242.78,6.76]
[1757881449324,2.9260572,242.89,242.78,6.76]
[1757881449523,2.9260572,242.88,242.78,6.76]
[1757881449724,3.98,242.91,242.78,6.76]
[1757881449925,2.92624311,242.9,242.78,6.76]
[1757881450119,2.92624311,242.89,242.78,6.76]
[1757881450319,2.92624311,242.88,242.78,6.76]
[1757881450519,3.98,242.91,242.78,6.76]
[1757881450722,2.9269051,242.9,242.78,6.76]
[1757881450923,2.9269051,242.89,242.78,6.76]
[1757881451120,2.9269051,242.88,242.78,6.76]
[1757881451426,3.98,242.91,242.78,6.76]
[1757881451621,2.92719203,242.9,242.78,6.76]
[1757881451817,3.98,242.88,242.78,6.76]
[1757881452023,6.90719203,242.87,242.78,6.76]
[1757881452219,3.98,242.87,242.78,6.76]
[1757881453222,2.92777603,242.86,242.78,6.76]
[1757881453928,6.90767399,242.85,242.78,6.76]
[1757881454122,2.92767399,242.84,242.78,6.76]
[1757881454321,3.98,242.85,242.78,6.76]
[1757881454522,2.92802788,242.84,242.78,6.76]
[1757881454722,3.98,242.85,242.78,6.76]
[1757881455027,2.92802785,242.84,242.78,6.76]
[1757881455223,2.92841629,242.83,242.78,6.76]
[1757881455425,3.98,242.88,242.78,6.76]
[1757881455625,2.92852128,242.87,242.78,6.76]
[1757881455825,3.98,242.85,242.78,6.76]
[1757881456025,2.92852128,242.84,242.78,6.76]
[1757881456225,3.98,242.82,242.78,6.76]
[1757881456929,3.98,242.82,242.73,6.95]
[1757881459032,3.98,242.91,242.73,6.95]
[1757881459234,2.93539517,242.9,242.73,6.95]
[1757881459532,2.93539517,242.89,242.73,6.95]
[1757881459725,2.93539517,242.88,242.73,6.95]
[1757881459921,2.93539517,242.87,242.73,6.95]
[1757881460129,2.93539517,242.86,242.77,6.95]
[1757881460329,2.93539517,242.85,242.77,6.95]
[1757881460628,2.93539517,242.84,242.77,6.95]
[1757881460824,3.98,242.91,242.77,6.95]
[1757881461025,2.93699568,242.9,242.77,6.95]
[1757881461230,2.93699568,242.89,242.77,6.95]
[1757881461428,2.93699568,242.88,242.77,6.95]
[1757881461628,2.93699568,242.87,242.77,6.95]
[1757881461830,2.93699568,242.86,242.77,6.95]
[1757881462128,2.93699568,242.85,242.77,6.95]